bitfinex-derivatives/quotes_ETHF0:USTF0_20241104
["timestamp","ask_amount","ask_price","bid_price","bid_amount"]
[1730684831475,0.9016,2463.0,2462.9,0.4062]
[1730684832669,3.2078,2463.4,2463.3,0.40614]
[1730684832976,3.2078,2463.4,2462.9,3.17043421]
[1730684833174,3.2078,2463.4,2463.2,0.40615]
[1730684833175,3.61394,2463.4,2463.2,0.40615]
[1730684833667,3.61394,2463.4,2462.9,3.17043421]
[1730684834064,3.61394,2463.4,2463.2,0.40614]
[1730684834370,3.2078,2463.4,2463.3,0.40614]
[1730684834575,3.2078,2463.4,2463.2,0.40614]
[1730684834870,3.2078,2463.4,2462.7,0.457]
[1730684835068,0.8887,2463.3,2462.7,0.457]
[1730684835267,1.29484,2463.3,2463.1,0.40616]
[1730684835469,0.40618,2463.1,2462.9,0.40619]
[1730684835872,0.40618,2463.1,2462.7,4.35846774]
[1730684835873,0.8887,2463.3,2463.0,0.40619]
[1730684836067,0.40617,2463.1,2463.0,0.40619]
[1730684837476,0.40616,2463.2,2463.0,0.40619]
[1730684838079,1.29484,2463.3,2463.2,0.40615]
[1730684838273,1.29484,2463.3,2462.7,5.37404774]
[1730684838478,0.40616,2463.2,2463.0,0.40618]
[1730684840079,1.29484,2463.3,2463.1,0.40616]
[1730684840272,0.4434,2463.3,2462.9,3.90146774]
[1730684840479,0.4434,2463.3,2463.2,0.40615]
[1730684840868,0.43,2463.6,2463.4,0.40611]
[1730684841174,2.63736312,2463.8,2463.1,1.01543]
[1730684841380,1.3345,2463.9,2463.3,3.90146774]
[1730684841570,1.3345,2463.9,2463.8,0.40605]
[1730684842180,0.9146,2463.9,2463.8,0.40605]
[1730684845979,3.2078,2464.2,2463.5,4.91670774]
[1730684846181,0.40603,2464.0,2463.8,0.40605]
[1730684846878,3.2078,2464.2,2463.5,4.34666774]
[1730684847075,0.40605,2463.9,2463.7,0.40607]
[1730684847688,0.40603,2464.0,2463.8,0.40605]
[1730684847883,0.40602,2464.1,2463.9,0.40603]
[1730684848077,3.2078,2464.2,2464.1,0.40601]
[1730684850378,1.26595,2464.5,2464.3,0.40597]
[1730684850592,1.26595,2464.5,2464.3,0.40596]
[1730684851483,1.26595,2464.5,2464.0,3.90146774]
[1730684851484,0.40597,2464.3,2464.1,0.40599]
[1730684851683,0.40597,2464.3,2464.0,3.90146774]
[1730684851684,0.40597,2464.3,2464.2,0.40599]
[1730684851878,0.86,2464.5,2464.4,0.40596]
[1730684852080,1.26594,2464.5,2464.4,0.40596]
[1730684852280,0.86,2464.5,2464.0,4.91650774]
[1730684852490,0.86,2464.5,2464.4,0.40596]
[1730684853283,3.2078,2464.6,2464.0,3.90146774]
[1730684853482,0.40595,2464.5,2464.3,0.40596]
[1730684853680,3.61373,2464.6,2464.4,0.40595]
[1730684853885,3.2078,2464.6,2464.0,3.90146774]
[1730684854088,3.61372,2464.6,2464.5,0.40594]
[1730684854282,3.2078,2464.6,2464.5,0.40594]
[1730684855292,1.3464,2464.9,2464.4,0.9064]
[1730684855490,3.2078,2465.0,2464.9,0.40587]
[1730684855786,3.61366,2465.0,2464.7,0.40591]
[1730684855997,3.61366,2465.0,2464.8,0.40588]
[1730684856485,3.61366,2465.0,2464.6,3.90146774]
[1730684856486,3.2078,2465.0,2464.6,3.90146774]
[1730684856682,3.2078,2465.0,2464.9,0.40587]
[1730684856882,3.2078,2465.0,2464.6,3.90146774]
[1730684856883,0.40587,2464.9,2464.7,0.4059]
[1730684857086,3.2078,2465.0,2464.6,3.90146774]
[1730684857289,3.2078,2465.0,2464.6,3.16776947]
[1730684857487,3.2078,2465.0,2464.9,0.40587]
[1730684858683,3.2078,2465.0,2464.6,3.16776947]
[1730684858884,0.40591,2464.7,2464.5,0.40593]
[1730684859181,0.40594,2464.5,2464.3,0.40597]
[1730684859590,0.84754,2464.6,2464.4,0.40595]
[1730684860486,0.40594,2464.5,2464.4,0.40595]
[1730684861088,0.4416,2464.6,2464.4,0.40595]
[1730684861292,0.84753,2464.6,2464.4,0.40595]
[1730684861489,0.40594,2464.5,2464.4,0.40595]
[1730684862589,0.84753,2464.6,2464.5,0.40594]
[1730684863096,0.84753,2464.6,2464.1,3.16776947]
[1730684863097,0.4416,2464.6,2464.3,0.40596]
[1730684863390,3.2078,2464.7,2464.0,1.01504]
[1730684863391,0.8803,2464.9,2464.4,3.16776947]
[1730684863592,0.4214,2464.9,2464.7,3.16776947]
[1730684863792,0.4214,2464.9,2464.5,0.9257]
[1730684863993,0.40592,2464.7,2464.6,0.40592]
[1730684864388,0.8758,2464.9,2464.6,0.40592]
[1730684864589,0.40587,2464.9,2464.8,0.40589]
[1730684864795,0.40589,2464.8,2464.7,3.57366947]
[1730684865198,3.2078,2465.0,2464.7,7.22536947]
[1730684865384,3.2078,2465.0,2464.8,0.40588]
[1730684865587,0.40587,2464.9,2464.8,0.40588]
[1730684865789,0.40589,2464.8,2464.7,3.57366947]
[1730684865991,0.40589,2464.8,2464.7,3.16776947]
[1730684866190,0.40589,2464.8,2464.7,3.57367947]
[1730684866693,0.40589,2464.8,2464.7,0.40591]
[1730684867693,0.40586,2465.0,2464.7,7.22536947]
[1730684867891,0.40589,2464.8,2464.7,3.57366947]
[1730684868094,3.2078,2465.1,2464.8,0.40589]
[1730684868095,0.40589,2464.9,2464.8,0.40589]
[1730684868391,0.40589,2464.9,2464.7,3.57365947]
[1730684868796,3.2078,2465.1,2464.7,3.57365947]
[1730684868990,3.2078,2465.1,2464.5,0.9257]
[1730684869193,3.2078,2465.1,2464.4,3.16776947]
[1730684869386,3.2078,2465.1,2464.6,0.40591]
[1730684869596,0.4059,2464.8,2464.7,0.40591]
[1730684870188,0.40591,2464.7,2464.6,0.40591]
[1730684870595,3.2078,2465.1,2464.4,3.16776947]
[1730684870796,3.2078,2464.8,2464.4,3.16776947]
[1730684871101,0.40594,2464.5,2464.4,3.57371947]
[1730684871293,0.40594,2464.5,2464.4,0.40595]
[1730684871492,0.40594,2464.5,2464.2,3.61126947]
[1730684871493,1.3278,2464.7,2464.0,3.2078]
[1730684871700,1.3278,2464.7,2464.1,0.40599]
[1730684871701,0.40599,2464.2,2464.1,0.40599]
[1730684871997,0.40601,2464.1,2464.0,3.61382]
[1730684872204,0.40601,2464.1,2464.0,3.2078]
[1730684873090,3.2078,2464.5,2464.0,3.2078]
[1730684873293,3.2078,2464.5,2464.0,3.61381]
[1730684873294,0.40601,2464.1,2464.0,3.61381]
[1730684873804,0.40601,2464.1,2464.0,0.40601]
[1730684874504,3.2078,2464.5,2463.7,4.04876947]
[1730684874798,0.40595,2464.5,2464.2,3.16776947]
[1730684875195,0.40595,2464.5,2464.4,0.40596]
[1730684875498,1.3278,2464.7,2464.5,0.40593]
[1730684875499,0.40593,2464.6,2464.5,0.40593]
[1730684875802,0.40594,2464.6,2464.4,3.57371947]
[1730684876001,0.40594,2464.6,2464.5,0.40594]
[1730684876194,1.3278,2464.7,2464.4,3.16776947]
[1730684876501,1.3278,2464.7,2464.6,0.40592]
[1730684876697,1.73372,2464.7,2464.5,0.40593]
[1730684877001,1.3278,2464.7,2464.6,0.40592]
[1730684877503,1.73371,2464.7,2464.5,0.40593]
[1730684878395,0.40593,2464.6,2464.4,3.57370947]
[1730684878603,0.40593,2464.6,2464.4,0.40594]
[1730684879300,1.73372,2464.7,2464.5,0.40594]
[1730684879700,1.3278,2464.7,2464.3,0.4505]
[1730684879900,0.40595,2464.5,2464.3,0.85646]
[1730684880406,1.3278,2464.7,2464.3,0.4505]
[1730684880709,0.8835,2464.7,2464.3,0.4505]
[1730684881002,0.40596,2464.4,2464.2,0.83217]
[1730684881198,0.8835,2464.7,2464.5,0.40594]
[1730684881199,0.4365,2464.6,2464.5,0.40594]
[1730684881608,0.8835,2464.7,2464.6,0.40592]
[1730684882201,0.86957,2465.0,2464.8,0.40588]
[1730684882518,0.86957,2465.0,2464.7,0.40589]
[1730684882519,0.40587,2464.9,2464.7,0.40589]
[1730684883007,0.4637,2465.0,2464.7,0.40589]
[1730684883206,0.40589,2464.9,2464.7,0.40589]
[1730684883519,3.2078,2464.8,2464.3,0.4277]
[1730684883806,3.2078,2464.5,2464.2,0.40598]
[1730684884004,0.40597,2464.3,2464.2,0.40598]
[1730684884510,0.40597,2464.3,2464.0,3.59546947]
[1730684884511,0.40597,2464.3,2464.1,0.406]
[1730684884694,0.40597,2464.3,2464.0,3.59546947]
[1730684884899,0.40597,2464.3,2464.2,0.40599]
[1730684885103,1.3373,2464.4,2464.2,0.40599]
[1730684885104,1.74327,2464.4,2464.2,0.40599]
[1730684885403,0.40597,2464.3,2464.2,0.40599]
[1730684885909,0.40597,2464.3,2464.0,3.59546947]
[1730684885910,0.40601,2464.1,2464.0,4.00147947]
[1730684886605,0.40603,2464.0,2463.9,0.40603]
[1730684886806,3.2078,2464.0,2463.5,0.898]
[1730684887009,0.85125,2463.9,2463.8,0.40605]
[1730684887597,0.406,2464.2,2464.1,0.40601]
[1730684887801,3.2078,2464.3,2463.8,4.0584]
[1730684887802,3.61378,2464.3,2464.2,0.40599]
[1730684888405,3.53386312,2464.4,2463.8,1.01514]
[1730684888607,0.8965,2464.4,2464.3,0.40597]
[1730684888812,0.83876,2464.4,2464.3,0.40597]
[1730684889008,0.40597,2464.3,2464.0,3.16776947]
[1730684889315,0.40599,2464.3,2464.1,0.406]
[1730684889502,0.40599,2464.2,2463.7,3.16776947]
[1730684889704,0.4328,2464.4,2464.0,0.40601]
[1730684889705,0.40601,2464.1,2464.0,0.40601]
[1730684889900,3.07016312,2464.4,2463.7,3.16776947]
[1730684890099,0.406,2464.2,2463.7,3.16776947]
[1730684890308,3.07016312,2464.4,2463.7,3.16776947]
[1730684890501,0.40599,2464.2,2464.1,0.40599]
[1730684890810,3.07016312,2464.4,2464.0,3.16776947]
[1730684891109,0.4348,2464.5,2464.4,0.40596]
[1730684891110,2.63736312,2464.5,2464.4,0.40596]
[1730684891308,2.63736312,2464.6,2464.5,0.40594]
[1730684891712,3.04327312,2464.7,2464.6,0.40592]
[1730684892209,0.443,2464.8,2464.4,3.16776947]
[1730684892210,2.63736312,2464.8,2464.4,3.16776947]
[1730684892418,5.84516312,2464.9,2464.8,0.40589]
[1730684892616,3.2078,2464.9,2464.8,0.40589]
[1730684893007,3.61367,2464.9,2464.8,0.40589]
[1730684893211,5.84516312,2464.9,2464.8,0.40589]
[1730684893616,6.25103312,2464.9,2464.8,0.40589]
[1730684894415,5.84516312,2464.9,2464.8,0.40589]
[1730684894917,6.25105312,2464.9,2464.7,3.57366947]
[1730684895213,6.25105312,2464.9,2464.7,0.4059]
[1730684895214,3.04325312,2464.8,2464.7,0.4059]
[1730684895419,6.25104312,2464.9,2464.7,0.4059]
[1730684895910,6.25104312,2464.9,2464.7,0.40589]
[1730684896615,3.04324312,2464.9,2464.7,0.40589]
[1730684896919,3.04324312,2464.9,2464.5,0.4478]
[1730684896920,2.63736312,2464.9,2464.5,0.4478]
[1730684897215,3.04324312,2464.9,2464.7,0.40589]
[1730684898016,0.40589,2464.8,2464.7,0.40589]
[1730684898420,3.04324312,2464.9,2464.8,0.40589]
[1730684898923,3.04324312,2464.9,2464.7,0.40589]
[1730684899911,2.63736312,2464.8,2464.4,3.16776947]
[1730684900218,0.40591,2464.7,2464.6,0.40591]
[1730684902320,0.40591,2464.7,2464.4,3.16776947]
[1730684902321,2.63736312,2464.8,2464.4,3.16776947]
[1730684902816,0.40591,2464.7,2464.6,0.40591]
[1730684903816,0.4373,2464.7,2464.3,3.2078]
[1730684904020,0.4634,2464.6,2464.3,3.2078]
[1730684904219,0.4634,2464.6,2464.5,0.40594]
[1730684904619,0.86932,2464.6,2464.5,0.40594]
[1730684905016,0.40596,2464.4,2464.3,0.40596]
[1730684905224,3.10076312,2464.6,2464.2,3.16776947]
[1730684905419,0.40597,2464.3,2464.2,0.40598]
[1730684905721,0.40596,2464.4,2464.3,0.40596]
[1730684906822,3.10076312,2464.6,2464.3,4.0576]
[1730684907118,0.4634,2464.6,2464.5,0.40594]
[1730684909724,3.04322312,2465.0,2464.7,0.40591]
[1730684909932,2.63736312,2464.9,2464.7,0.4059]
[1730684910229,0.40592,2464.7,2464.6,0.40592]
[1730684911131,2.63736312,2464.9,2464.5,3.16776947]
[1730684911332,4.02109575,2465.0,2464.9,0.40587]
[1730684911526,0.85626,2465.0,2464.9,0.40587]
[1730684912130,4.02109575,2465.0,2464.9,0.40587]
[1730684912328,0.85626,2465.0,2464.9,0.40587]
[1730684913431,0.40587,2464.9,2464.8,3.57365947]
[1730684914229,0.40587,2464.9,2464.8,7.22456947]
[1730684914230,2.6569544,2464.9,2464.8,7.22456947]
[1730684914431,2.6569544,2464.9,2464.8,7.63045947]
[1730684914637,2.6569544,2465.0,2464.9,0.40587]
[1730684914835,5.8647544,2465.1,2465.0,0.40586]
[1730684915129,5.8647544,2465.1,2465.0,4.46266]
[1730684915733,5.8647544,2465.1,2465.0,0.40586]
[1730684915929,2.6569544,2465.1,2465.0,0.40586]
[1730684916128,2.6569544,2465.1,2465.0,4.46266]
[1730684916523,2.6569544,2465.2,2465.1,0.40584]
[1730684916728,2.6569544,2465.2,2465.1,4.02110947]
[1730684916934,3.59833575,2465.5,2465.2,0.40582]
[1730684916935,2.6569544,2465.3,2465.2,0.40582]
[1730684917129,3.59833575,2465.5,2465.4,0.40579]
[1730684917331,0.4335,2465.5,2465.4,0.40579]
[1730684917525,0.4498,2465.6,2465.2,3.59816947]
[1730684917734,0.85556,2465.6,2465.5,3.57353947]
[1730684918127,0.85556,2465.6,2465.5,3.16776947]
[1730684918535,3.10349333,2465.6,2465.5,3.16776947]
[1730684918738,3.10349333,2465.6,2465.5,3.57353947]
[1730684918739,0.4498,2465.6,2465.5,3.57353947]
[1730684919534,0.4498,2465.6,2465.5,3.16776947]
[1730684919728,0.4498,2465.6,2465.5,3.57353947]
[1730684921433,0.4498,2465.6,2465.5,3.16776947]
[1730684921738,0.85556,2465.6,2465.5,3.16776947]
[1730684922128,0.85556,2465.6,2465.4,0.40579]
[1730684922129,0.4498,2465.6,2465.4,0.40579]
[1730684922538,0.85557,2465.6,2465.3,3.16776947]
[1730684922837,0.4498,2465.6,2465.5,3.57353947]
[1730684923036,5.86149333,2465.8,2465.5,3.16776947]
[1730684923336,0.85335,2465.7,2465.5,3.57353947]
[1730684923536,0.40576,2465.6,2465.5,3.57353947]
[1730684923736,0.4476,2465.7,2465.5,3.16776947]
[1730684924032,0.40576,2465.6,2465.5,3.16776947]
[1730684924231,0.85335,2465.7,2465.5,3.57352947]
[1730684924631,0.4476,2465.7,2465.5,3.57352947]
[1730684924935,0.40576,2465.6,2465.5,3.57352947]
[1730684925330,0.4476,2465.7,2465.6,0.40576]
[1730684925633,3.2078,2465.8,2465.7,0.40574]
[1730684925931,3.2078,2465.8,2465.7,7.62950947]
[1730684926331,3.2078,2465.8,2465.7,3.57350947]
[1730684926332,3.61353,2465.8,2465.7,3.57350947]
[1730684926537,3.61353,2465.8,2465.7,3.16776947]
[1730684927127,6.77836575,2465.8,2465.7,3.16776947]
[1730684927328,6.77836575,2465.8,2465.4,0.4523]
[1730684927329,6.37263575,2465.8,2465.5,3.57353947]
[1730684927532,0.86085,2465.7,2465.6,0.40576]
[1730684927835,0.4551,2465.7,2465.3,3.16776947]
[1730684928033,2.64903444,2465.4,2465.3,3.57355947]
[1730684928637,2.64903444,2465.5,2465.4,0.40579]
[1730684928934,0.4551,2465.7,2465.4,3.16776947]
[1730684929133,3.61993575,2465.7,2465.4,3.16776947]
[1730684929336,3.05421495,2465.5,2465.4,3.57354947]
[1730684929837,0.40577,2465.5,2465.4,3.16776947]
[1730684930033,0.40577,2465.5,2465.4,3.57355947]
[1730684930232,0.40577,2465.6,2465.5,0.40577]
[1730684930633,0.40577,2465.5,2465.4,3.16776947]
[1730684930839,0.40576,2465.6,2465.4,3.16776947]
[1730684931033,0.40576,2465.6,2465.5,0.40577]
[1730684932131,0.40576,2465.6,2465.5,0.40576]
[1730684932330,3.61993575,2465.7,2465.6,0.40576]
[1730684932331,0.86084,2465.7,2465.6,0.40576]
[1730684932737,0.4551,2465.7,2465.6,0.40576]
[1730684937446,0.86084,2465.7,2465.6,0.40576]
[1730684937829,0.4551,2465.7,2465.6,0.40576]
[1730684938940,0.86084,2465.7,2465.6,0.40576]
[1730684939239,0.4551,2465.7,2465.5,0.4547]
[1730684939442,0.4551,2465.7,2465.5,0.86047]
[1730684939443,0.40576,2465.6,2465.5,0.86047]
[1730684939648,0.4551,2465.7,2465.6,0.40576]
[1730684939649,0.86085,2465.7,2465.6,0.40576]
[1730684939955,0.40576,2465.6,2465.5,0.86047]
[1730684940452,0.4551,2465.7,2465.6,0.40576]
[1730684941044,0.454,2465.9,2465.8,0.40573]
[1730684941540,3.6495,2466.0,2465.9,0.40571]
[1730684942051,3.2078,2466.0,2465.9,0.40571]
[1730684942236,3.61349,2466.0,2465.9,0.40571]
[1730684942435,3.2078,2466.0,2465.8,0.85911]
[1730684942738,0.40571,2465.9,2465.8,0.40571]
[1730684942943,3.2078,2466.0,2465.7,3.16776947]
[1730684943239,3.6135,2466.0,2465.8,0.40573]
[1730684943440,3.6135,2466.0,2465.7,3.16776947]
[1730684943637,3.6135,2466.0,2465.9,0.40571]
[1730684944036,3.2078,2466.0,2465.7,3.16776947]
[1730684944239,3.2078,2466.0,2465.8,0.40572]
[1730684944240,0.40571,2465.9,2465.8,0.40572]
[1730684944645,0.40573,2465.8,2465.7,3.16776947]
[1730684944940,0.84083,2465.8,2465.5,3.62246947]
[1730684945131,0.84083,2465.8,2465.7,3.57350947]
[1730684945336,0.4351,2465.8,2465.7,3.57350947]
[1730684945741,3.10241065,2466.2,2465.7,3.16776947]
[1730684945935,0.4326,2466.1,2465.7,3.16776947]
[1730684946140,0.4326,2466.1,2465.9,0.4057]
[1730684946341,0.83829,2466.1,2465.9,0.4057]
[1730684946740,0.40569,2466.0,2465.9,0.4057]
[1730684946938,4.22189,2466.4,2465.9,0.4057]
[1730684946939,0.40562,2466.5,2466.0,7.22296947]
[1730684947141,0.40562,2466.5,2466.4,3.16776947]
[1730684947142,0.4326,2466.5,2466.4,3.16776947]
[1730684947334,0.4317,2466.6,2466.5,0.40561]
[1730684947750,0.4317,2466.6,2466.4,3.57338947]
[1730684947949,0.40561,2466.5,2466.4,3.57339947]
[1730684948245,0.40557,2466.8,2466.4,7.22216947]
[1730684948436,0.40557,2466.8,2466.7,0.40558]
[1730684948639,4.0634,2467.0,2466.4,3.16776947]
[1730684948846,3.6638,2466.7,2466.4,3.16776947]
[1730684949040,3.6638,2466.7,2466.6,0.40559]
[1730684949246,0.456,2466.7,2466.6,3.57335947]
[1730684949955,0.40555,2466.9,2466.6,3.16776947]
[1730684950145,4.0634,2467.0,2466.6,3.16776947]
[1730684950453,4.46894,2467.0,2466.7,0.40556]
[1730684950842,0.40555,2466.9,2466.7,0.40556]
[1730684951148,4.0634,2467.0,2466.6,3.16776947]
[1730684951355,4.0634,2467.0,2466.7,0.4456]
[1730684951652,0.40556,2466.8,2466.7,0.4456]
[1730684952451,4.0634,2467.0,2466.7,0.4456]
[1730684952647,4.0634,2467.0,2466.6,3.57335947]
[1730684952648,0.40556,2466.8,2466.6,3.57335947]
[1730684952858,0.40557,2466.8,2466.6,3.57335947]
[1730684953345,4.0634,2467.0,2466.6,3.16776947]
[1730684953548,0.40561,2466.5,2466.4,3.16776947]
[1730684954250,0.4056,2466.6,2466.5,0.40561]
[1730684954460,0.4056,2466.6,2466.4,3.57337947]
[1730684954754,5.07725,2467.0,2466.4,3.57338947]
[1730684954755,0.40561,2466.5,2466.4,3.57338947]
[1730684956255,0.40561,2466.5,2466.4,3.16776947]
[1730684956952,0.40561,2466.6,2466.5,0.40561]
[1730684957250,0.40561,2466.6,2466.4,3.16776947]
[1730684957454,0.40561,2466.6,2466.5,0.40561]
[1730684957943,3.2078,2466.8,2466.4,3.16776947]
[1730684958148,0.40561,2466.5,2466.4,3.57338947]
[1730684958554,0.40561,2466.5,2466.4,3.16776947]
[1730684958750,0.40569,2466.1,2466.0,0.40569]
[1730684958950,0.40568,2466.1,2466.0,0.40568]
[1730684959747,0.40569,2466.0,2465.9,3.16776947]
[1730684959947,0.85599,2466.0,2465.9,3.57347947]
[1730684960449,0.85599,2466.0,2465.9,3.16776947]
[1730684960655,0.40573,2465.8,2465.7,3.16776947]
[1730684960854,4.5055,2466.0,2465.6,0.40575]
[1730684960855,0.40574,2465.7,2465.6,0.40575]
[1730684961556,4.0684,2465.9,2465.5,3.16776947]
[1730684961948,0.40576,2465.6,2465.5,3.57352947]
[1730684962152,0.40575,2465.7,2465.5,3.57352947]
[1730684962554,0.40576,2465.6,2465.5,3.16776947]
[1730684962760,0.82576,2465.6,2465.5,3.16776947]
[1730684963056,0.82576,2465.6,2465.5,3.57353947]
[1730684963358,0.82576,2465.6,2465.5,3.16776947]
[1730684963562,0.82576,2465.6,2465.5,3.57353947]
[1730684963855,0.82576,2465.6,2465.5,3.16776947]
[1730684964055,0.82576,2465.6,2465.5,3.57353947]
[1730684964357,4.0684,2465.9,2465.5,3.16776947]
[1730684964551,1.26632,2465.9,2465.8,3.57349947]
[1730684964754,0.8606,2465.9,2465.8,3.57349947]
[1730684965157,1.26631,2465.9,2465.8,3.16776947]
[1730684965356,0.4196,2465.9,2465.8,3.57349947]
[1730684965662,0.40568,2466.1,2466.0,0.40568]
[1730684965864,3.09031065,2466.2,2466.0,0.40568]
[1730684966053,0.84727,2466.2,2466.0,0.40568]
[1730684966452,0.4416,2466.2,2466.1,0.40568]
[1730684966661,0.40566,2466.2,2466.1,0.40567]
[1730684967155,0.40565,2466.3,2466.1,0.40567]
[1730684967854,4.5289,2466.4,2466.1,0.40567]
[1730684968260,4.5289,2466.4,2466.0,3.16776947]
[1730684968460,4.5289,2466.4,2466.0,3.57345947]
[1730684968662,4.5289,2466.4,2466.0,3.16776947]
[1730684968961,0.40569,2466.0,2465.8,3.16776947]
[1730684969161,0.4401,2465.9,2465.8,3.57348947]
[1730684969461,0.84581,2465.9,2465.8,3.57348947]
[1730684969855,0.84581,2465.9,2465.8,3.16776947]
[1730684970064,0.84581,2465.9,2465.7,0.85223]
[1730684970065,0.40574,2465.8,2465.7,0.40574]
[1730684970257,0.85314,2465.8,2465.6,3.2078]
[1730684970457,0.85314,2465.8,2465.7,0.40574]
[1730684971060,0.85313,2465.8,2465.7,0.40574]
[1730684971260,0.4474,2465.8,2465.7,0.40574]
[1730684971467,0.85313,2465.8,2465.7,0.40574]
[1730684972959,0.4401,2465.9,2465.6,3.2078]
[1730684973157,0.84581,2465.9,2465.8,3.57349947]
[1730684973553,0.84581,2465.9,2465.8,3.16776947]
[1730684973765,0.84581,2465.9,2465.6,3.2078]
[1730684973953,0.84581,2465.9,2465.2,0.40581]
[1730684973954,0.40581,2465.3,2465.2,0.40581]
[1730684974160,0.40582,2465.2,2465.1,3.61786947]
[1730684974358,0.40582,2465.3,2465.1,3.57360947]
[1730684975080,0.4497,2465.4,2464.8,7.87218286]
[1730684975260,0.40585,2465.1,2464.9,0.40587]
[1730684976164,0.40585,2465.1,2465.0,0.40586]
[1730684976362,0.4527,2465.2,2465.0,0.40586]
[1730684976563,0.40584,2465.1,2465.0,0.40586]
[1730684976758,0.40584,2465.1,2464.9,0.40586]
[1730684977668,0.4527,2465.2,2465.0,0.40584]
[1730684977669,0.85853,2465.2,2465.0,0.40584]
[1730684977861,0.85853,2465.2,2464.9,0.40587]
[1730684978061,0.85853,2465.2,2465.0,0.40585]
[1730684978260,0.85853,2465.2,2464.9,0.40587]
[1730684978571,0.85853,2465.2,2465.0,0.40584]
[1730684978876,0.40584,2465.1,2465.0,0.40584]
[1730684979262,0.85853,2465.2,2465.0,0.40584]
[1730684979458,0.40584,2465.1,2465.0,0.40584]
[1730684980571,0.85853,2465.2,2465.1,0.40584]
[1730684980965,0.40582,2465.3,2465.1,0.40584]
[1730684981769,0.8555,2465.4,2465.1,3.16776947]
[1730684981970,0.40581,2465.3,2465.2,0.40581]
[1730684983173,0.40586,2465.0,2464.9,6.78143947]
[1730684983372,3.6575,2465.4,2464.9,6.37556947]
[1730684983669,0.40584,2465.2,2465.0,0.40585]
[1730684983873,3.6575,2465.4,2465.0,0.40585]
[1730684984070,0.40586,2465.0,2464.9,6.78143947]
[1730684984275,0.40586,2465.0,2464.9,3.2078]
[1730684984469,1.01455,2465.3,2464.8,0.40589]
[1730684984470,0.40587,2464.9,2464.8,0.40589]
[1730684985172,0.40587,2464.9,2464.2,3.6276]
[1730684985173,0.40598,2464.3,2464.2,0.40598]
[1730684985481,0.40595,2464.5,2464.4,0.40595]
[1730684985868,1.3485,2464.8,2464.2,0.4274]
[1730684986377,1.3485,2464.8,2464.5,0.40593]
[1730684986378,0.40592,2464.6,2464.5,0.40593]
[1730684986576,0.40593,2464.6,2464.2,0.865]
[1730684986774,0.40593,2464.6,2464.5,0.40594]
[1730684987872,1.3485,2464.8,2464.2,0.865]
[1730684988174,0.40593,2464.6,2464.5,0.40594]
[1730684988971,0.40593,2464.6,2464.2,0.865]
[1730684989168,0.40593,2464.6,2464.3,0.40597]
[1730684989372,0.40593,2464.6,2464.4,0.40594]
[1730684989882,0.40593,2464.6,2464.5,0.40594]
[1730684990174,1.3485,2464.8,2464.5,0.40594]
[1730684990383,1.2982,2464.8,2464.6,0.40592]
[1730684990680,0.40593,2464.6,2464.4,0.40596]
[1730684990871,0.40592,2464.7,2464.5,0.40593]
[1730684991072,0.40592,2464.6,2464.5,0.40593]
[1730684991470,0.40592,2464.6,2464.3,3.16776947]
[1730684991471,0.8923,2464.8,2464.3,3.16776947]
[1730684991675,0.40591,2464.7,2464.6,0.40592]
[1730684992276,0.40593,2464.6,2464.4,0.40594]
[1730684992681,0.40593,2464.6,2464.4,4.46354]
[1730684992875,0.40593,2464.6,2464.4,0.40594]
[1730684993074,0.40593,2464.6,2464.3,3.16776947]
[1730684993278,0.40593,2464.6,2464.4,0.40595]
[1730684993473,0.40593,2464.6,2464.5,0.40593]
[1730684993675,0.8923,2464.8,2464.7,0.40591]
[1730684993983,1.29821,2464.8,2464.6,0.84901]
[1730684994281,1.29821,2464.8,2464.6,0.40591]
[1730684994676,1.29821,2464.8,2464.5,0.40594]
[1730684994884,1.29821,2464.8,2464.7,0.40591]
[1730684995273,0.40591,2464.7,2464.6,0.40592]
[1730684995577,1.2982,2464.8,2464.7,0.40591]
[1730684996084,0.8923,2464.8,2464.7,0.40591]
[1730684996685,1.29819,2464.8,2464.7,0.40591]
[1730684996982,1.29819,2464.8,2464.6,0.40591]
[1730684996983,0.40591,2464.7,2464.6,0.40591]
[1730684997481,1.29819,2464.8,2464.7,0.40591]
[1730685000280,0.8923,2464.8,2464.7,0.40591]
[1730685000784,1.29819,2464.8,2464.7,0.40591]
[1730685000992,0.8923,2464.8,2464.4,3.16776947]
[1730685001183,0.8923,2464.8,2464.2,3.2078]
[1730685001184,5.11485,2464.8,2464.2,3.2078]
[1730685001378,0.40597,2464.4,2464.3,0.40597]
[1730685001578,0.40594,2464.6,2464.5,0.40593]
[1730685002684,0.40592,2464.7,2464.6,0.40592]
[1730685002991,0.8923,2464.8,2464.4,3.16776947]
[1730685003195,0.8923,2464.8,2464.4,3.57371947]
[1730685003196,0.40594,2464.5,2464.4,3.57371947]
[1730685003385,0.40595,2464.5,2464.4,0.40596]
[1730685004683,0.40595,2464.5,2464.0,1.43464]
[1730685004684,0.40601,2464.1,2464.0,0.40601]
[1730685004992,3.2078,2464.2,2463.7,3.16776947]
[1730685005189,0.4061,2463.6,2463.5,0.4061]
[1730685005383,1.44238,2464.0,2463.4,0.5281944]
[1730685005384,0.4061,2463.5,2463.4,0.5281944]
[1730685006090,1.47034,2463.8,2463.4,3.69596387]
[1730685006091,0.86127,2463.8,2463.4,3.69596387]
[1730685006289,0.40607,2463.7,2463.6,0.40608]
[1730685006484,0.40607,2463.7,2463.5,0.40609]
[1730685008091,0.86127,2463.8,2463.6,0.40608]
[1730685008394,0.40608,2463.7,2463.5,0.4061]
[1730685009388,0.40608,2463.7,2463.4,3.69596387]
[1730685009593,0.86127,2463.8,2463.6,0.40609]
[1730685009797,0.40607,2463.7,2463.6,0.40609]
[1730685009987,0.40607,2463.7,2463.5,0.40609]